Cogmind - Beta 13 @@@ ROGUE MODE // 2024.04.06 @ 16:49:51 Player: TechnicalFowl Result: Destroyed by H-66 Slayer with Gauss Rifle Performance ------------- Evolutions (1) 500 Regions Visited (5) 1000 Robots Destroyed (63) 315 Value Destroyed (1546) 1546 Prototype IDs (0) 0 Alien Tech Used (0) 0 Bonus (60) 60 TOTAL SCORE: 3421 Bonus ------- High Alert Combat Kills 60 Cogmind --------- Core Integrity 0/400 Matter 147/300 Energy 160/160 System Corruption 0% Temperature Cool (74) Movement Walking (120) Location -6/Proximity Caves Parts ------- > --- POWER (1) -------- Light Nuclear Core > --- PROPULSION (4) --- Aluminum Leg Improved Aluminum Leg > --- UTILITY (2) ------ (None) > --- WEAPON (2) ------- Assault Cannon > --- INVENTORY (5) ---- Improved Heat Sink ECM Suite Light Armor Plating Peak State ------------ > --- POWER ------------ Deuterium Engine > --- PROPULSION ------- Titanium Leg Titanium Leg Titanium Leg Titanium Leg > --- UTILITY ---------- Small Storage Unit Visual Processing Unit > --- WEAPON ----------- Assault Cannon Assault Cannon > --- INVENTORY -------- Deuterium Engine Improved Aluminum Leg Improved Heat Sink Sensor Array ECM Suite Light Armor Plating Assault Cannon Assault Cannon [Rating: 25] Favorites ----------- Power Deuterium Engine Engine Deuterium Engine Power Core Light Nuclear Core Propulsion Titanium Leg Leg Titanium Leg Utility Small Storage Unit Device ECM Suite Storage Small Storage Unit Processor Visual Processing Unit Weapon Assault Cannon Ballistic Gun Assault Rifle Ballistic Cannon Assault Cannon Build | -11 -10 -9 -9 -7 -6 ------- Run | Yrd Mat Mat Min Zio Pro Slots Evolved 2 | . . 2 . . . Power . | . . . . . . Propulsion 2 | . . 2 . . . Utility . | . . . . . . Weapon . | . . . . . . Parts Attached 34 | 6 8 15 . . 5 Power 5 | 1 1 2 . . 1 Engine 4 | 1 1 2 . . . Core 1 | . . . . . 1 Reactor . | . . . . . . Propulsion 17 | 2 4 9 . . 2 Treads . | . . . . . . Leg 17 | 2 4 9 . . 2 Wheel . | . . . . . . Hover . | . . . . . . Flight . | . . . . . . Utility 4 | 1 1 2 . . . Device 2 | . 1 1 . . . Storage 1 | 1 . . . . . Processor 1 | . . 1 . . . Hackware . | . . . . . . Protection . | . . . . . . Artifact . | . . . . . . Weapon 8 | 2 2 2 . . 2 Energy Gun . | . . . . . . Energy Cannon . | . . . . . . Ballistic Gun 3 | 2 1 . . . . Ballistic Cannon 5 | . 1 2 . . 2 Launcher . | . . . . . . Special Weapon . | . . . . . . Impact Weapon . | . . . . . . Slashing Weapon . | . . . . . . Piercing Weapon . | . . . . . . Special Melee Weapon . | . . . . . . Unidentified Prototypes . | . . . . . . Parts Lost 15 | . 2 4 . . 9 Power 2 | . . 1 . . 1 Propulsion 6 | . . 3 . . 3 Utility 2 | . . . . . 2 Weapon 5 | . 2 . . . 3 Highest Loss Streak 7 | . 1 3 . . 7 To Critical Strikes 1 | . 1 . . . . Average Slot Usage (%) 94 | . 89 96 100 100 84 Engine 10 | . 10 10 11 11 7 Leg 37 | . 28 41 44 44 33 Device 9 | . 9 9 11 11 6 Storage 11 | . 14 11 11 11 11 Ballistic Gun 8 | . 23 2 . . . Ballistic Cannon 14 | . 1 19 22 22 21 Naked Turns . | . . . . . . Heaviest Build 26 | 12 16 26 25 25 25 Greatest Support 68 | 20 20 68 54 54 54 Greatest Overweight (x) 1 | 1 . . . . . Average Overweight (x) . | . . . . . . Largest Inventory Capacity 8 | 8 8 8 8 8 8 Average Capacity 7 | 7 8 8 8 8 8 Most Carried 8 | 5 8 8 8 8 8 Average Carried 6 | 1 4 7 8 8 6 Final Capacity 8 | 8 8 8 8 8 5 Final Carried 8 | 1 8 8 8 8 3 Class Distribution -------------------- 88% | Mutant 11% | Scavenger-Mutant Dominant Class ---------------- Mutant | -10/Materials Mutant | -9/Materials Mutant | -9/Mines Mutant | -7/Zion Mutant | -6/Proximity Caves Resources | -11 -10 -9 -9 -7 -6 ----------- Run | Yrd Mat Mat Min Zio Pro Matter Collected 1835 | 191 356 1186 . . 102 Remotely . | . . . . . . Salvage Created 1673 | . 414 1123 . . 136 Parts 106 | . 29 70 . . 7 Haulers Intercepted . | . . . . . . Recyclers Shooed 5 | . 2 3 . . . Parts Field Recycled . | . . . . . . Retrieved Matter . | . . . . . . Parts Self-Destructed 6 | . . . . . 6 Prevented . | . . . . . . Kills | -11 -10 -9 -9 -7 -6 ------- Run | Yrd Mat Mat Min Zio Pro Combat Hostiles Destroyed 43 | . 12 26 . . 5 Guns 14 | . 11 3 . . . Cannons 29 | . 1 23 . . 5 Classes Destroyed 11 | . 2 7 . . 2 Worker 6 | . . 6 . . . Builder 3 | . . 3 . . . Tunneler 1 | . . 1 . . . Recycler 4 | . . 4 . . . Operator 1 | . . 1 . . . Watcher 5 | . . 5 . . . Swarmer 13 | . 3 7 . . 3 Grunt 21 | . 9 12 . . . Sentry 7 | . . 7 . . . Programmer 1 | . . . . . 1 Behemoth 1 | . . . . . 1 Best Kill Streak 8 | . 4 8 . . 3 Combat Bots Only 4 | . 4 4 . . 3 Max Kills in Single Turn 2 | . 1 2 . . 1 Gunslinging . | . . . . . . Exploded . | . . . . . . Melee . | . . . . . . Uniques/NPCs Destroyed . | . . . . . . Combat | -11 -10 -9 -9 -7 -6 -------- Run | Yrd Mat Mat Min Zio Pro Hostile Shots Fired 295 | . 76 151 4 . 64 Missed 76 | . 14 39 2 . 21 Damage Taken 2902 | . 657 1334 14 . 897 Core 609 | . 193 248 . . 168 Absorbed by Shields . | . . . . . . Core Remaining (%) 61 | 100 22 . . . . Volleys Fired 194 | . 45 131 . . 18 Largest 2 | . 2 2 . . 2 Hottest 88 | . 55 88 . . 88 Shots Fired 357 | . 79 246 . . 32 Gun 106 | . 78 28 . . . Cannon 251 | . 1 218 . . 32 Launcher . | . . . . . . Special . | . . . . . . Kinetic 357 | . 79 246 . . 32 Thermal . | . . . . . . Explosive . | . . . . . . Electromagnetic . | . . . . . . Robot Hit Streak 8 | . 8 8 . . 5 Robot Miss Streak 8 | . 2 8 . . 2 Penetration Max . | . . . . . . Secondary Targets 2 | . 2 . . . . Max Gunslinging Chain 1 | . 1 . . . . Shots Hit Robots 188 | . 50 118 . . 20 Core Hits 81 | . 21 49 . . 11 Critical Kills . | . . . . . . Critical Parts Destroyed . | . . . . . . Critical Strikes 9 | . . 9 . . . Blast 9 | . . 9 . . . Melee Attacks . | . . . . . . Impact . | . . . . . . Slashing . | . . . . . . Piercing . | . . . . . . Sneak Attacks . | . . . . . . Combat Hostiles . | . . . . . . Follow-up Attacks . | . . . . . . Damage Inflicted 4110 | . 606 3015 . . 489 Guns 705 | . 590 115 . . . Cannons 3402 | . 16 2897 . . 489 Explosions . | . . . . . . Melee . | . . . . . . Ramming 3 | . . 3 . . . Kinetic 4107 | . 606 3012 . . 489 Thermal . | . . . . . . Explosive . | . . . . . . Electromagnetic . | . . . . . . Impact . | . . . . . . Slashing . | . . . . . . Piercing . | . . . . . . Highest Corruption 1 | . 1 . . . . Average Corruption 1 | . 1 . . . . Corruption Purged . | . . . . . . Corruption Blocked . | . . . . . . Effects 8 | . 8 . . . . Message Errors 2 | . 2 . . . . Matter Fused 3 | . 3 . . . . Heat Flow Errors 1 | . 1 . . . . Parts Rejected 1 | . 1 . . . . Data Loss (major) 1 | . 1 . . . . Overload Shots . | . . . . . . Overflow Damage 83 | . . 82 . . 1 Projectiles 83 | . . 82 . . 1 Explosions . | . . . . . . Melee . | . . . . . . Knockbacks 19 | . . 17 . . 2 Impact . | . . . . . . Kinetic 19 | . . 17 . . 2 Secondary . | . . . . . . Self-Inflicted Damage . | . . . . . . Shots . | . . . . . . Rammed . | . . . . . . Targets Rammed 2 | . . 2 . . . Kicked 2 | . . 2 . . . Crushed . | . . . . . . Highest Temperature 471 | . 89 471 . . 111 Average Temperature 80 | . 18 85 . . 52 Received Heat Transfer 894 | . 315 519 . . 60 Effects 7 | . . 7 . . . Shutdowns 3 | . . 3 . . . Interference 2 | . . 2 . . . Matter Decay 2 | . . 2 . . . Siege Activations . | . . . . . . Robots Corrupted . | . . . . . . Combat Hostiles . | . . . . . . Parts Fried . | . . . . . . Impact Corruptions . | . . . . . . Robots Melted . | . . . . . . Combat Hostiles . | . . . . . . Parts Melted . | . . . . . . Heat Transferred . | . . . . . . Parts Sabotaged . | . . . . . . Parts Stolen . | . . . . . . Parts Stripped . | . . . . . . Power Chain Reactions . | . . . . . . Alert | -11 -10 -9 -9 -7 -6 ------- Run | Yrd Mat Mat Min Zio Pro Peak Influence 538 | . 226 538 208 . . Initial 208 | . . 40 208 . . Average 240 | . 84 323 208 . . Maximum Alert Level 2 | . 1 2 1 . . Low Security (%) 49 | 100 94 25 . . . Level 1 25 | . 5 36 100 . . Level 2 25 | . . 38 . . . Level 3 . | . . . . . . Level 4 . | . . . . . . Level 5 . | . . . . . . High Security . | . . . . . . Max Security . | . . . . . . Squads Dispatched 8 | . 3 5 . . . Investigation 5 | . 1 4 . . . Extermination . | . . . . . . Reinforcement 3 | . 2 1 . . . Assault . | . . . . . . Garrison . | . . . . . . Intercept . | . . . . . . Searches Triggered . | . . . . . . Construction Impeded 1 | . . 1 . . . Haulers Reinforced . | . . . . . . Active Scanning Responses . | . . . . . . Cargo Convoy Interrupts . | . . . . . . Stealth | -11 -10 -9 -9 -7 -6 --------- Run | Yrd Mat Mat Min Zio Pro Distress Signals 1 | . 1 . . . . Communications Jammed . | . . . . . . Distress Signals . | . . . . . . Times Spotted 68 | . 17 41 3 . 7 Peak Tracking Total 5 | . 5 4 3 . 3 Tactical Retreats 1 | . 1 . . . . Traps | -11 -10 -9 -9 -7 -6 ------- Run | Yrd Mat Mat Min Zio Pro Traps Triggered 2 | . 2 . . . . Indirectly . | . . . . . . Trap Hack Attempts . | . . . . . . Triggered . | . . . . . . Disarmed . | . . . . . . Reprogrammed . | . . . . . . Reused . | . . . . . . Traps Extracted . | . . . . . . Installed . | . . . . . . Triggered . | . . . . . . Machines | -11 -10 -9 -9 -7 -6 ---------- Run | Yrd Mat Mat Min Zio Pro Machines Disabled 4 | . . 4 . . . Max in Single Turn 1 | . . 1 . . . Machines Repaired . | . . . . . . Machines Dismantled . | . . . . . . Machines Sabotaged . | . . . . . . Overloaded Fab Kills . | . . . . . . Hacking | -11 -10 -9 -9 -7 -6 --------- Run | Yrd Mat Mat Min Zio Pro Machines Accessed 7 | . 2 5 . . . Terminals 5 | . 2 3 . . . Fabricators . | . . . . . . Repair Stations . | . . . . . . Recycling Units 2 | . . 2 . . . Scanalyzers . | . . . . . . Garrison Access . | . . . . . . Total Hacks 21 | . 7 14 . . . Successful 8 | . 3 5 . . . Failed 13 | . 4 9 . . . Catastrophic 2 | . . 2 . . . Database Lockouts . | . . . . . . Manual 6 | . 3 3 . . . Terminals 17 | . 7 10 . . . Fabricators . | . . . . . . Repair Stations . | . . . . . . Recycling Units 4 | . . 4 . . . Scanalyzers . | . . . . . . Garrison Access . | . . . . . . Terminal Hacks 6 | . 3 3 . . . Branch Access Points 1 | . 1 . . . . Alert Level 1 | . . 1 . . . Locate Traps 4 | . 2 2 . . . Fabricator Hacks . | . . . . . . Repair Station Hacks . | . . . . . . Recycling Unit Hacks 2 | . . 2 . . . Report Inventory 1 | . . 1 . . . Retrieve Components 1 | . . 1 . . . Scanalyzer . | . . . . . . Garrison Access Hacks . | . . . . . . Unauthorized Hacks . | . . . . . . Terminals . | . . . . . . Fabricators . | . . . . . . Repair Stations . | . . . . . . Recycling Units . | . . . . . . Scanalyzers . | . . . . . . Garrison Access . | . . . . . . Data Cores Recovered 1 | . . 1 . . . Used . | . . . . . . Hacking Detections 6 | . 2 4 . . . Full Trace Events 4 | . . 4 . . . Feedback Events . | . . . . . . Feedback Blocked . | . . . . . . Robot Schematics Acquired . | . . . . . . Robots Built . | . . . . . . Authchips . | . . . . . . Time . | . . . . . . Total Robot Build Rating . | . . . . . . Part Schematics Acquired . | . . . . . . Parts Built . | . . . . . . Authchips . | . . . . . . Time . | . . . . . . Total Part Build Rating . | . . . . . . Parts Repaired . | . . . . . . Time . | . . . . . . Parts Recycled . | . . . . . . Recycled Matter . | . . . . . . Retrieved Matter . | . . . . . . Retrieved Components 8 | . . 8 . . . Parts Scanalyzed . | . . . . . . Part Schematics Acquired . | . . . . . . Parts Damaged . | . . . . . . Bothacking | -11 -10 -9 -9 -7 -6 ------------ Run | Yrd Mat Mat Min Zio Pro Used RIF Installer . | . . . . . . Robots Hacked . | . . . . . . Non-combat . | . . . . . . Combat . | . . . . . . Robot Hacks Applied . | . . . . . . Relay Couplers Released . | . . . . . . Fabnet Peak Effective % . | . . . . . . Robots Rewired . | . . . . . . Allies Hacked . | . . . . . . Hacks Repelled . | . . . . . . Allies | -11 -10 -9 -9 -7 -6 -------- Run | Yrd Mat Mat Min Zio Pro Total Allies . | . . . . . . Largest Group . | . . . . . . Highest-Rated Group . | . . . . . . Highest-Rated Ally . | . . . . . . Total Orders . | . . . . . . Ally Attacks . | . . . . . . Total Damage . | . . . . . . Kills . | . . . . . . Allies Corrupted . | . . . . . . Allies Melted . | . . . . . . Intel | -11 -10 -9 -9 -7 -6 ------- Run | Yrd Mat Mat Min Zio Pro Robot Analysis Total . | . . . . . . Derelict Logs Recovered . | . . . . . . Drone Launches . | . . . . . . Drone Recoveries . | . . . . . . Exploration | -11 -10 -9 -9 -7 -6 ------------- Run | Yrd Mat Mat Min Zio Pro Turns Passed 2675 | 48 723 1496 3 150 255 Spaces Moved 1639 | 37 467 849 3 121 162 Core 14 | 14 . . . . . Treads . | . . . . . . Legs 1625 | 23 467 849 3 121 162 Wheels . | . . . . . . Hover . | . . . . . . Flight . | . . . . . . Fastest Speed 50 | 50 120 120 125 125 120 Average Speed 123 | 97 120 127 125 125 123 Slowest Speed 190 | 190 120 130 125 125 125 Overloaded Moves . | . . . . . . Propulsion Burnouts . | . . . . . . Robots Hopped . | . . . . . . Cave-ins Triggered . | . . . . . . Exploration Rate (%) 28 | 4 68 54 3 13 29 Regions Visited 5 Branch Regions 3 Pre-discovered Areas . | . . . . . . Known Exits Taken . | . . . . . . Unknown Exits Taken 5 | 1 1 1 1 1 . Scrap Searched . | . . . . . . Spaces Dug . | . . . . . . Terrain Destroyed 40 | . . 40 . . . Melee . | . . . . . . Projectile 40 | . . 40 . . . AOE . | . . . . . . Terrain Rammed . | . . . . . . Walls Destroyed . | . . . . . . Machines Disabled . | . . . . . . Actions | -11 -10 -9 -9 -7 -6 --------- Run | Yrd Mat Mat Min Zio Pro Total 1943 | 49 555 1030 2 120 187 Wait 14 | . 13 1 . . . Move 1634 | 36 466 848 2 120 162 Hop . | . . . . . . Pick Up 45 | 7 17 20 . . 1 Fast Attach . | . . . . . . Attach 25 | 6 5 9 . . 5 Detach . | . . . . . . Swap 9 | . 3 6 . . . Drop 20 | . 6 13 . . 1 Fire 194 | . 45 131 . . 18 Melee . | . . . . . . Ram . | . . . . . . Kick 2 | . . 2 . . . Crush . | . . . . . . Escape Stasis . | . . . . . . Rewire . | . . . . . . Trap . | . . . . . . Miscellaneous . | . . . . . . Route ------- -11/Scrapyard -10/Materials (discovered 3 exits: *Mat / *Min x2) -9/Materials (discovered 2 exits: [*Mat] / [*Min]) -9/Mines -7/Zion -6/Proximity Caves History --------- Turn | Location | Event 5 | -11/Scrapyard | Discovered new exit (range 15) 49 | -11/Scrapyard | Entered Materials 311 | -10/Materials | Build established: Mutant 334 | -10/Materials | Discovered new exit (range 10) 370 | -10/Materials | Core integrity fell below 50% 423 | -10/Materials | Identified exit to Mines 595 | -10/Materials | Discovered new exit (range 16) 772 | -10/Materials | Entered another Materials area 772 | -9/Materials | Evolved 2 slots: Propulsion x2 1061 | -9/Materials | Build established: Scavenger-Mutant 1196 | -9/Materials | Discovered new exit (range 15) 1376 | -9/Materials | Build established: Mutant 1581 | -9/Materials | Core integrity fell below 50% 1643 | -9/Materials | Discovered new exit (range 16) 2115 | -9/Materials | Lost 3 parts (1p2n) 2268 | -9/Materials | Entered Mines 2269 | -9/Mines | A Derelict revealed a hidden shortcut to a safe place 2271 | -9/Mines | Entered Zion 2408 | -7/Zion | Discovered new exit (range 11) 2421 | -7/Zion | Entered Proximity Caves 2564 | -6/Proximity Caves | Spotted B-75 Beast 2574 | -6/Proximity Caves | Core integrity fell below 20% 2585 | -6/Proximity Caves | Destroyed B-75 Beast 2614 | -6/Proximity Caves | Lost 7 parts (1p3n1u2w) 2666 | -6/Proximity Caves | Ambushed by research squad 2676 | -6/Proximity Caves | Destroyed by H-66 Slayer with Gauss Rifle Last Messages --------------- Aluminum Leg blasted off. Sensor Array destroyed. Deuterium Engine destroyed. Titanium Leg destroyed. B-75 Beast destroyed. Acquired 5 matter. Acquired 44 matter. Acquired 3 matter. Slug penetrates Wall. P-60 Hacker: "UNIQUE TECHNOLOGY DETECTED, NEUTRALIZE FOR ANALYSIS." Penetrated by Slug. Slug penetrates Wall. H-66 Slayer knocked back. Penetrated by Slug. Slug penetrates Wall. Assault Cannon destroyed. Penetrated by Slug. Sml. Storage Unit destroyed. Penetrated by Slug. Map ----- +----------------------------------------------------+ | | | | | | | | | | | | | | | | | ?????????????????????????????????????????????????? | | ?????????????????????????????????????????????????? | | ?????????????????????????????????????????????????? | | ?????????????????????????????????????????????????? | | ?????????????????????????????????????????????????? | | ?????????????????????????????????????????????????? | | ?????????????????????????????????????????????????? | | ?????????????????????????????????????????????????? | | ?????????????????????????????????????????????????? | | ?????????????????????????????????????????????????? | | ?????????????????????????????????????????????????? | | ??????????????????????#####????######????????????? | | ??????????????????????#%ph#????"""" #????????????? | | ??????????????????????#h #????"" "#????????????? | | ??????????????????????#%% #####" ""#????????????? | | ??????????????????????# ## #" #?????????????? | | ??????????????????????# ### #" ##????????????? | | ?????????????????????## @ ### " ""##???????????? | | ???????????????????### #???????????? | | ???????????????????# #???????????? | | ???????????????????# ##### ##???????????? | | ???????????????????# ???## #????????????? | | ???????????????????# #### ##????????????? | | ???????????????????## #?????????????? | | ????????????????????####### #?????????????? | | ??????????????????????????# ### #?????????????? | | ??????????????????????##### ##?# #?????????????? | | ??????????????????????# #??# ????????????? | | ??????????????????????# #??? ???????????? | | ??????????????????????# #####??? #??????????? | | ????????????????????### #??????? #??????????? | | ????????????????????# ##?????? #??????????? | | ????????????????????# ###???? ??????????? | | ????????????????????## #???? ## ?????????? | | ?????????????????????## ##???##??????????????? | | ?????????????????????## ###?????????????????? | | ????????????????????## #?????????????????? | | ????????????????????# #?????????????????? | | ????????????????????# #?????????????????? | | ????????????????????## ##????????????????? | | ?????????????????????## #????????????????? | | ?????????????????????## #????????????????? | +----------------------------------------------------+ Best States ------------- Heat Dissipation 28 Energy Generation 14 Energy Capacity 275 Matter Stores 300 Matter Capacity 300 Sight Range 18 Robot Scan Range 14 Terrain Scan Density 10 ECM Strength 1 Evasion (%) 55 Item Schematics ----------------- None Robot Schematics ------------------ None Fabricated ------------ Nothing Alien Tech Used ----------------- None Achievements -------------- None Challenges ------------ None Game ------ Seed DataSpliceMeganuke Manual? 0 Play Time 00:24:10 Cumulative 5.4 hours Start 2024.04.06 @ 16:26:45 End 2024.04.06 @ 16:49:51 Sessions 1 Manual Loads 0 Difficulty Rogue Special Mode None Game No. 11 Rogue 9 Adventurer 2 Explorer 0 Win Type - Total 0 Types 0/0/0/0/0/0/0/0/0 Lore% 6 Gallery% 12 Achievement% 15 Wizard Run 0 Options --------- Layout 1 ASCII 0 Keyboard 0 Movement Arrows Keybinds 0 Fullscreen 1 Font 24/Smallcaps Map View 50x35 Zoom Use 0% Tactical HUD 0 Map Filters NONE Filters NONE Steam 1 RUN: 8e71422d-f5cc-4417-bb6b-42e06a70c241